fUSD/lending_fUSD_20260115
["ID","MTS","AMOUNT","RATE_DAILY","PERIOD"]
[402012888,1768457464762,-1625.84,0.00041643,30]
[402012889,1768457464772,-500.0,0.00041643,30]
[402012890,1768457464782,-1507.14,0.00041643,30]
[402012891,1768457464791,-1064.77,0.00041643,30]
[402012892,1768457464800,-500.0,0.00041643,30]
[402012893,1768457464809,-500.0,0.00041643,30]
[402012894,1768457464818,-1074.82,0.00041643,30]
[402012895,1768457464827,-758.89,0.00041643,30]
[402012896,1768457464836,-500.0,0.00041643,30]
[402012897,1768457464845,-500.0,0.00041643,30]
[402012898,1768457464854,-1014.8,0.00041643,30]
[402012899,1768457464863,-1456.69,0.00041643,30]
[402012900,1768457464873,-625.93,0.00041643,30]
[402012901,1768457464882,-500.0,0.00041643,30]
[402012902,1768457464891,-623.16,0.00041643,30]
[402012903,1768457464901,-500.0,0.00041643,30]
[402012904,1768457464910,-523.15,0.00041643,30]
[402012905,1768457464920,-259.48,0.00041643,30]
[402012906,1768457464929,-1093.9,0.00041643,30]
[402012907,1768457464938,-700.27,0.00041643,30]
[402012908,1768457464947,-1131.87,0.00041643,30]
[402012909,1768457464957,-500.0,0.00041643,30]
[402012910,1768457464966,-1256.56,0.00041643,30]
[402012911,1768457464976,-500.0,0.00041643,30]
[402012912,1768457464985,-500.0,0.00041643,30]
[402012913,1768457464995,-500.0,0.00041643,30]
[402012914,1768457465005,-500.0,0.00041643,30]
[402012915,1768457465013,-500.0,0.00041643,30]
[402012916,1768457465022,-1619.29,0.00041643,30]
[402012917,1768457465031,-1177.88,0.00041643,30]
[402012918,1768457465041,-577.5,0.00041643,30]
[402012919,1768457465050,-2469.66,0.00041643,30]
[402012920,1768457465059,-500.0,0.00041643,30]
[402012921,1768457465068,-696.27,0.00041643,30]
[402012922,1768457465078,-1065.52,0.00041643,30]
[402012923,1768457465087,-1113.96,0.00041643,30]
[402012924,1768457465096,-500.0,0.00041643,30]
[402012925,1768457465105,-500.0,0.00041643,30]
[402012926,1768457465113,-150.978527,0.00041643,30]
[402012927,1768457465122,-500.0,0.00041643,30]
[402012928,1768457465132,-1532.77,0.00041643,30]
[402012929,1768457465141,-656.74,0.00041643,30]
[402012930,1768457465150,-500.0,0.00041643,30]
[402012931,1768457465159,-560.28422188,0.00041643,30]
[402012932,1768457465170,-500.0,0.00041643,30]
[402012933,1768457465179,-1909.11,0.00041643,30]
[402012934,1768457465188,-1649.65,0.00041643,30]
[402012935,1768457465197,-1094.73,0.00041643,30]
[402012936,1768457465206,-500.0,0.00041643,30]
[402012937,1768457465215,-500.0,0.00041643,30]
[402012938,1768457465224,-574.58282287,0.00041643,30]
[402012939,1768457465234,-500.0,0.00041643,30]
[402012940,1768457465243,-249.90074014,0.00041643,30]
[402012941,1768457465252,-836.24,0.00041643,30]
[402012942,1768457465261,-1286.49,0.00041643,30]
[402012943,1768457465271,-1255.25,0.00041643,30]
[402012944,1768457465281,-689.07,0.00041643,30]
[402012945,1768457465290,-856.16,0.00041643,30]
[402012946,1768457465300,-928.74,0.00041643,30]
[402012947,1768457465310,-954.82,0.00041643,30]
[402012948,1768457465319,-500.0,0.00041643,30]
[402012949,1768457465328,-854.21,0.00041643,30]
[402012950,1768457465337,-500.0,0.00041643,30]
[402012951,1768457465346,-500.0,0.00041643,30]
[402012952,1768457465355,-641.44,0.00041643,30]
[402012953,1768457465364,-500.0,0.00041643,30]
[402012954,1768457465373,-500.0,0.00041643,30]
[402012955,1768457465382,-1035.01,0.00041643,30]
[402012956,1768457465391,-500.0,0.00041643,30]
[402012957,1768457465400,-500.0,0.00041643,30]
[402012958,1768457465410,-1549.97,0.00041643,30]
[402012959,1768457465419,-2042.01,0.00041643,30]
[402012960,1768457465429,-500.0,0.00041643,30]
[402012961,1768457465440,-500.0,0.00041643,30]
[402012962,1768457465451,-500.0,0.00041643,30]
[402012963,1768457465460,-997.92,0.00041643,30]
[402012964,1768457465470,-697.4,0.00041643,30]
[402012965,1768457465480,-500.0,0.00041643,30]
[402012966,1768457465490,-597.896929,0.00041643,30]
[402012967,1768457465500,-500.0,0.00041643,30]
[402012968,1768457465510,-500.0,0.00041643,30]
[402012969,1768457465522,-354.89488497,0.00041643,2]
[402012970,1768457465531,-500.0,0.00041643,30]
[402012971,1768457465540,-671.07,0.00041643,30]
[402012972,1768457465549,-500.0,0.00041643,30]
[402012973,1768457465559,-745.16,0.00041643,30]
[402012974,1768457465568,-500.0,0.00041643,30]
[402012975,1768457465579,-1195.19,0.00041643,30]
[402012976,1768457465588,-1288.81,0.00041643,30]
[402012977,1768457465597,-516.61,0.00041643,30]
[402012978,1768457465606,-679.62,0.00041643,30]
[402012979,1768457465616,-500.0,0.00041643,30]
[402012980,1768457465626,-1568.66,0.00041643,30]
[402012981,1768457465635,-556.66,0.00041643,30]
[402012982,1768457465645,-1135.41,0.00041643,30]
[402012983,1768457465655,-544.3,0.00041643,30]
[402012984,1768457465664,-1444.3,0.00041643,30]
[402012985,1768457465674,-500.0,0.00041643,30]
[402012986,1768457465684,-509.96141966,0.00041643,30]
[402012987,1768457465694,-500.0,0.00041643,30]
[402012988,1768457465703,-500.0,0.00041643,30]
[402012989,1768457465713,-750.18,0.00041643,30]
[402012990,1768457465722,-500.0,0.00041643,30]
[402012991,1768457465731,-500.0,0.00041643,30]
[402012992,1768457465741,-500.0,0.00041643,30]
[402012993,1768457465750,-760.26,0.00041643,30]
[402012994,1768457465759,-500.0,0.00041643,30]
[402012995,1768457465769,-500.0,0.00041643,30]
[402012996,1768457465779,-500.0,0.00041643,30]
[402012997,1768457465788,-500.0,0.00041643,30]
[402012998,1768457465798,-500.0,0.00041643,30]
[402012999,1768457465808,-1319.37,0.00041643,30]
[402013000,1768457465817,-621.65,0.00041643,30]
[402013001,1768457465826,-673.22,0.00041643,30]
[402013002,1768457465836,-500.0,0.00041643,30]
[402013003,1768457465845,-1102.95,0.00041643,30]
[402013004,1768457465855,-500.0,0.00041643,30]
[402013005,1768457465865,-500.0,0.00041643,30]
[402013006,1768457465874,-500.0,0.00041643,30]
[402013007,1768457465884,-500.0,0.00041643,30]
[402013008,1768457465893,-1081.74,0.00041643,30]
[402013009,1768457465903,-500.0,0.00041643,30]
[402013010,1768457465912,-500.0,0.00041643,30]
[402013011,1768457465921,-793.57,0.00041643,30]
[402013012,1768457465931,-500.0,0.00041643,30]
[402013013,1768457465941,-1563.9,0.00041643,30]
[402013014,1768457465950,-500.0,0.00041643,30]
[402013015,1768457465959,-662.47,0.00041643,30]
[402013016,1768457465968,-500.0,0.00041643,30]
[402013017,1768457465978,-1409.31,0.00041643,30]
[402013018,1768457465987,-500.0,0.00041643,30]
[402013019,1768457465996,-1608.8,0.00041643,30]
[402013020,1768457466005,-500.0,0.00041643,30]
[402013021,1768457466015,-500.0,0.00041643,30]
[402013022,1768457466024,-500.0,0.00041643,30]
[402013023,1768457466034,-607.43,0.00041643,30]
[402013024,1768457466043,-941.55,0.00041643,30]
[402013025,1768457466052,-500.0,0.00041643,30]
[402013026,1768457466062,-500.0,0.00041643,30]
[402013027,1768457466071,-500.0,0.00041643,30]
[402013028,1768457466081,-500.0,0.00041643,30]
[402013029,1768457466090,-946.59,0.00041643,30]
[402013030,1768457466099,-500.0,0.00041643,30]
[402013031,1768457466109,-500.0,0.00041643,30]
[402013032,1768457466119,-526.09,0.00041643,30]
[402013033,1768457466128,-500.56,0.00041643,30]
[402013034,1768457466137,-500.0,0.00041643,30]
[402013035,1768457466147,-681.52,0.00041643,30]
[402013036,1768457466156,-500.0,0.00041643,30]
[402013037,1768457466165,-799.57,0.00041643,30]
[402013038,1768457466175,-500.0,0.00041643,30]
[402013039,1768457466184,-1219.46,0.00041643,30]
[402013040,1768457466193,-604.27,0.00041643,30]
[402013041,1768457466203,-151.5560776,0.00041643,30]
[402013042,1768457466212,-769.82,0.00041643,30]
[402013043,1768457466222,-951.73,0.00041643,30]
[402013044,1768457466231,-500.0,0.00041643,30]
[402013045,1768457466241,-1179.02,0.00041643,30]
[402013046,1768457466250,-633.19,0.00041643,30]
[402013047,1768457466259,-839.49,0.00041643,30]
[402013048,1768457466269,-500.0,0.00041643,30]
[402013049,1768457466278,-2247.46,0.00041643,30]
[402013050,1768457466287,-500.0,0.00041643,30]
[402013051,1768457466297,-500.0,0.00041643,30]
[402013052,1768457466306,-633.34048691,0.00041643,30]
[402013053,1768457466315,-500.0,0.00041643,30]
[402013054,1768457466324,-500.0,0.00041643,30]
[402013055,1768457466334,-1156.41,0.00041643,30]
[402013056,1768457466343,-500.0,0.00041643,30]
[402013057,1768457466352,-500.0,0.00041643,30]
[402013058,1768457466361,-605.2,0.00041643,30]
[402013059,1768457466370,-859.7,0.00041643,30]
[402013060,1768457466380,-626.97,0.00041643,30]
[402013061,1768457466389,-500.0,0.00041643,30]
[402013062,1768457466398,-588.74,0.00041643,30]
[402013063,1768457466407,-500.0,0.00041643,30]
[402013064,1768457466416,-1177.25,0.00041643,30]
[402013065,1768457466426,-300.0,0.00041643,2]
[402013066,1768457466435,-500.0,0.00041643,30]
[402013067,1768457466446,-2464.01,0.00041643,30]
[402013068,1768457466457,-502.48,0.00041643,30]
[402013069,1768457466466,-500.0,0.00041643,30]
[402013070,1768457466476,-500.0,0.00041643,30]
[402013071,1768457466486,-500.0,0.00041643,30]
[402013072,1768457466496,-500.0,0.00041643,30]
[402013073,1768457466505,-538.91,0.00041643,30]
[402013074,1768457466515,-500.0,0.00041643,16]
[402013075,1768457466526,-1591.4,0.00041643,30]
[402013076,1768457466535,-500.0,0.00041643,30]
[402013077,1768457466544,-578.12,0.00041643,30]
[402013078,1768457466553,-1475.67,0.00041643,30]
[402013079,1768457466563,-911.51,0.00041643,30]
[402013080,1768457466573,-733.23,0.00041643,30]
[402013081,1768457466583,-1360.43,0.00041643,30]
[402013082,1768457466592,-509.32,0.00041643,30]
[402013083,1768457466601,-708.8,0.00041643,30]
[402013084,1768457466611,-512.3880589,0.00041643,30]
[402013085,1768457466620,-500.0,0.00041643,30]
[402013086,1768457466630,-500.0,0.00041643,30]
[402013087,1768457466639,-500.0,0.00041643,30]
[402013088,1768457466649,-500.0,0.00041643,30]
[402013089,1768457466659,-1202.12,0.00041643,30]
[402013090,1768457466668,-500.0,0.00041643,30]
[402013091,1768457466678,-500.0,0.00041643,30]
[402013092,1768457466687,-1353.02,0.00041643,30]
[402013093,1768457466696,-636.14,0.00041643,30]
[402013094,1768457466706,-1767.9,0.00041643,30]
[402013095,1768457466715,-1061.8,0.00041643,30]
[402013096,1768457466726,-500.0,0.00041643,30]
[402013097,1768457466735,-939.02,0.00041643,30]
[402013098,1768457466744,-610.32,0.00041643,30]
[402013099,1768457466754,-660.88,0.00041643,30]
[402013100,1768457466763,-500.0,0.00041643,30]
[402013101,1768457466773,-500.0,0.00041643,30]
[402013102,1768457466783,-500.0,0.00041643,30]
[402013103,1768457466792,-1140.08,0.00041643,30]
[402013104,1768457466802,-500.0,0.00041643,30]
[402013105,1768457466812,-500.0,0.00041643,30]
[402013106,1768457466821,-548.45,0.00041643,30]
[402013107,1768457466831,-500.0,0.00041643,30]
[402013108,1768457466841,-901.6,0.00041643,30]
[402013109,1768457466851,-500.0,0.00041643,30]
[402013110,1768457466861,-500.0,0.00041643,30]
[402013111,1768457466870,-1700.28,0.00041643,30]
[402013112,1768457466880,-500.0,0.00041643,30]
[402013113,1768457466889,-500.0,0.00041643,30]
[402013114,1768457466899,-725.19,0.00041643,30]
[402013115,1768457466908,-590.93,0.00041643,30]
[402013116,1768457466917,-862.64,0.00041643,30]
[402013117,1768457466926,-500.0,0.00041643,30]
[402013118,1768457466936,-500.0,0.00041643,30]
[402013119,1768457466945,-505.85,0.00041643,30]
[402013120,1768457466955,-500.0,0.00041643,30]
[402013121,1768457467036,-500.0,0.00041643,30]
[402013122,1768457467045,-500.0,0.00041643,30]
[402013123,1768457467055,-1534.14,0.00041643,30]
[402013124,1768457467064,-500.0,0.00041643,30]
[402013125,1768457467073,-500.0,0.00041643,30]
[402013126,1768457467082,-500.0,0.00041643,30]
[402013127,1768457467092,-934.36,0.00041643,30]
[402013128,1768457467101,-520.02,0.00041643,30]
[402013129,1768457467110,-1912.65,0.00041643,30]
[402013130,1768457467120,-548.79968117,0.00041643,30]
[402013131,1768457467130,-1270.25,0.00041643,30]
[402013132,1768457467139,-500.0,0.00041643,30]
[402013133,1768457467148,-500.0,0.00041643,30]
[402013134,1768457467157,-954.91,0.00041643,2]
[402013135,1768457467166,-500.0,0.00041643,30]
[402013136,1768457467175,-497.72868168,0.00041643,30]
[402013137,1768457467185,-1932.52,0.00041643,30]
[402013138,1768457467194,-500.0,0.00041643,30]
[402013139,1768457467203,-500.0,0.00041643,30]
[402013140,1768457467212,-529.6,0.00041643,30]
[402013141,1768457467221,-500.0,0.00041643,30]
[402013142,1768457467231,-2502.91,0.00041643,30]
[402013143,1768457467240,-500.0,0.00041643,30]
[402013144,1768457467249,-1172.39,0.00041643,30]
[402013145,1768457467259,-500.0,0.00041643,30]
[402013146,1768457467268,-816.46,0.00041643,30]
[402013147,1768457467278,-596.5,0.00041643,30]
[402013148,1768457467287,-500.0,0.00041643,30]
[402013149,1768457467297,-819.93,0.00041643,30]
[402013150,1768457467306,-500.0,0.00041643,30]
[402013151,1768457467315,-608.54,0.00041643,30]
[402013152,1768457467324,-500.0,0.00041643,30]
[402013153,1768457467333,-500.0,0.00041643,30]
[402013154,1768457467343,-500.0,0.00041643,30]
[402013155,1768457467353,-500.0,0.00041643,30]
[402013156,1768457467362,-549.02,0.00041643,30]
[402013157,1768457467371,-624.41162693,0.00041643,30]
[402013158,1768457467380,-525.82,0.00041643,30]
[402013159,1768457467390,-500.0,0.00041643,30]
[402013160,1768457467400,-798.1,0.00041643,30]
[402013161,1768457467409,-956.28,0.00041643,30]
[402013162,1768457467419,-603.14,0.00041643,30]
[402013163,1768457467428,-500.0,0.00041643,30]
[402013164,1768457467437,-500.0,0.00041643,30]
[402013165,1768457467448,-521.56,0.00041643,30]
[402013166,1768457467457,-500.0,0.00041643,30]
[402013167,1768457467466,-839.13,0.00041643,30]
[402013168,1768457467476,-500.0,0.00041643,30]
[402013169,1768457467486,-613.7,0.00041643,30]
[402013170,1768457467496,-521.1975916,0.00041643,30]
[402013171,1768457467505,-500.0,0.00041643,30]
[402013172,1768457467515,-1326.59,0.00041643,30]
[402013173,1768457467524,-536.66,0.00041643,30]
[402013174,1768457467534,-500.0,0.00041643,30]
[402013175,1768457467543,-500.0,0.00041643,30]
[402013176,1768457467552,-2038.63,0.00041643,30]
[402013177,1768457467561,-1089.28,0.00041643,30]
[402013178,1768457467570,-1881.89,0.00041643,30]
[402013179,1768457467579,-500.0,0.00041643,30]
[402013180,1768457467588,-896.38,0.00041643,30]
[402013181,1768457467598,-1155.3,0.00041643,30]
[402013182,1768457467607,-500.0,0.00041643,30]
[402013183,1768457467616,-663.46,0.00041643,30]
[402013184,1768457467625,-723.82,0.00041643,30]
[402013185,1768457467634,-1033.31,0.00041643,30]
[402013186,1768457467644,-500.0,0.00041643,30]
[402013187,1768457467653,-500.0,0.00041643,30]
[402013188,1768457467662,-500.0,0.00041643,30]
[402013189,1768457467671,-500.0,0.00041643,30]
[402013190,1768457467681,-500.0,0.00041643,30]
[402013191,1768457467690,-500.0,0.00041643,30]
[402013192,1768457467700,-500.0,0.00041643,30]
[402013193,1768457467708,-1391.17,0.00041643,30]
[402013194,1768457467717,-2353.86,0.00041643,30]
[402013195,1768457467728,-500.0,0.00041643,30]
[402013196,1768457467740,-1566.62,0.00041643,30]
[402013197,1768457467749,-2417.67,0.00041643,30]
[402013198,1768457467759,-937.37,0.00041643,30]
[402013199,1768457467768,-500.0,0.00041643,30]
[402013200,1768457467777,-500.0,0.00041643,30]
[402013201,1768457467786,-708.73,0.00041643,30]
[402013202,1768457467796,-957.4,0.00041643,30]
[402013203,1768457467805,-500.0,0.00041643,30]
[402013204,1768457467814,-500.0,0.00041643,30]
[402013205,1768457467823,-1411.27,0.00041643,30]
[402013206,1768457467832,-500.0,0.00041643,14]
[402013207,1768457467842,-643.3,0.00041643,30]
[402013208,1768457467851,-1001.58,0.00041643,30]
[402013209,1768457467860,-1078.39,0.00041643,30]
[402013210,1768457467869,-1192.85,0.00041643,30]
[402013211,1768457467879,-2018.6,0.00041643,30]
[402013212,1768457467888,-1210.17,0.00041643,30]
[402013213,1768457467897,-500.0,0.00041643,30]
[402013214,1768457467907,-567.34,0.00041643,30]
[402013215,1768457467916,-500.0,0.00041643,30]
[402013216,1768457467926,-500.0,0.00041643,30]
[402013217,1768457467935,-500.0,0.00041643,30]
[402013218,1768457467944,-1114.65,0.00041643,30]
[402013219,1768457467953,-1708.02,0.00041643,30]
[402013220,1768457467962,-500.0,0.00041643,30]
[402013221,1768457467971,-526.33,0.00041643,30]
[402013222,1768457467982,-683.19,0.00041643,30]
[402013223,1768457467990,-1258.86,0.00041643,30]
[402013224,1768457468001,-500.0,0.00041643,30]
[402013225,1768457468009,-500.0,0.00041643,30]
[402013226,1768457468018,-1655.62,0.00041643,30]
[402013227,1768457468027,-2227.25,0.00041643,30]
[402013228,1768457468037,-500.0,0.00041643,30]
[402013229,1768457468046,-563.06,0.00041643,30]
[402013230,1768457468055,-758.71,0.00041643,30]
[402013231,1768457468064,-562.35,0.00041643,30]
[402013232,1768457468073,-500.0,0.00041643,30]
[402013233,1768457468082,-670.26,0.00041643,30]
[402013234,1768457468092,-500.0,0.00041643,30]
[402013235,1768457468102,-500.0,0.00041643,30]
[402013236,1768457468110,-500.0,0.00041643,30]
[402013237,1768457468120,-606.78,0.00041643,30]
[402013238,1768457468129,-659.28,0.00041643,30]
[402013239,1768457468138,-556.98,0.00041643,30]
[402013240,1768457468148,-1056.69,0.00041643,30]
[402013241,1768457468157,-758.85,0.00041643,30]
[402013242,1768457468166,-1244.54,0.00041643,30]
[402013243,1768457468175,-945.69,0.00041643,30]
[402013244,1768457468184,-500.0,0.00041643,30]
[402013245,1768457468194,-500.0,0.00041643,30]
[402013246,1768457468204,-500.0,0.00041643,30]
[402013247,1768457468213,-500.0,0.00041643,30]
[402013248,1768457468222,-1080.01,0.00041643,30]
[402013249,1768457468232,-471.39603834,0.00041643,30]
[402013250,1768457468241,-643.24,0.00041643,30]
[402013251,1768457468251,-439.27400231,0.00041643,30]
[402013252,1768457468260,-500.0,0.00041643,30]
[402013253,1768457468270,-2241.78,0.00041643,30]
[402013254,1768457468279,-500.0,0.00041643,30]
[402013255,1768457468288,-500.0,0.00041643,30]
[402013256,1768457468297,-563.06,0.00041643,30]
[402013257,1768457468306,-759.35,0.00041643,30]
[402013258,1768457468315,-1093.43,0.00041643,30]
[402013259,1768457468324,-500.0,0.00041643,30]
[402013260,1768457468333,-1328.1,0.00041643,30]
[402013261,1768457468343,-500.0,0.00041643,30]
[402013262,1768457468352,-2331.95,0.00041643,30]
[402013263,1768457468360,-1848.93,0.00041643,30]
[402013264,1768457468369,-1465.14,0.00041643,30]
[402013265,1768457468378,-1757.19,0.00041643,30]
[402013266,1768457468387,-1020.5,0.00041643,30]
[402013267,1768457468396,-500.0,0.00041643,30]
[402013268,1768457468406,-500.0,0.00041643,30]
[402013269,1768457468415,-2683.99,0.00041643,30]
[402013270,1768457468424,-526.43,0.00041643,30]
[402013271,1768457468434,-522.23,0.00041643,30]
[402013272,1768457468444,-919.76,0.00041643,30]
[402013273,1768457468455,-500.0,0.00041643,30]
[402013274,1768457468465,-804.6,0.00041643,30]
[402013275,1768457468474,-500.0,0.00041643,30]
[402013276,1768457468483,-989.66,0.00041643,30]
[402013277,1768457468493,-1404.8,0.00041643,30]
[402013278,1768457468503,-1152.57,0.00041643,30]
[402013279,1768457468512,-500.0,0.00041643,30]
[402013280,1768457468523,-2134.33,0.00041643,30]
[402013281,1768457468532,-1306.82,0.00041643,30]
[402013282,1768457468541,-500.0,0.00041643,30]
[402013283,1768457468550,-1386.77,0.00041643,30]
[402013284,1768457468559,-500.0,0.00041643,30]
[402013285,1768457468568,-920.43,0.00041643,30]
[402013286,1768457468577,-500.0,0.00041643,30]
[402013287,1768457468586,-500.0,0.00041643,30]
[402013288,1768457468595,-760.77,0.00041643,30]
[402013289,1768457468604,-500.0,0.00041643,30]
[402013290,1768457468613,-500.0,0.00041643,30]
[402013291,1768457468623,-735.77,0.00041643,30]
[402013292,1768457468632,-500.0,0.00041643,30]
[402013293,1768457468641,-1128.46,0.00041643,30]
[402013294,1768457468651,-529.02,0.00041643,30]
[402013295,1768457468660,-566.59,0.00041643,30]
[402013296,1768457468669,-973.06,0.00041643,30]
[402013297,1768457468679,-2420.8,0.00041643,30]
[402013298,1768457468688,-500.0,0.00041643,30]
[402013299,1768457468698,-758.96,0.00041643,30]
[402013300,1768457468708,-500.0,0.00041643,30]
[402013301,1768457468718,-1514.71,0.00041643,30]
[402013302,1768457468728,-500.0,0.00041643,30]
[402013303,1768457468738,-719.06,0.00041643,30]
[402013304,1768457468748,-1100.58,0.00041643,30]
[402013305,1768457468757,-500.0,0.00041643,30]
[402013306,1768457468767,-605.49,0.00041643,30]
[402013307,1768457468776,-500.0,0.00041643,30]
[402013308,1768457468787,-500.0,0.00041643,30]
[402013309,1768457468807,-1055.56,0.00041643,30]
[402013310,1768457468827,-500.0,0.00041643,30]
[402013311,1768457468838,-1365.21,0.00041643,30]
[402013312,1768457468849,-1235.49,0.00041643,30]
[402013313,1768457468858,-4767.29,0.00041643,30]
[402013314,1768457468868,-1812.03,0.00041643,30]
[402013315,1768457468877,-1326.3,0.00041643,30]
[402013316,1768457468893,-500.0,0.00041643,30]
[402013317,1768457468912,-752.31,0.00041643,30]
[402013318,1768457468933,-500.0,0.00041643,30]
[402013319,1768457468949,-500.0,0.00041643,30]
[402013320,1768457468962,-500.0,0.00041643,30]
[402013321,1768457468973,-1808.66,0.00041643,30]
[402013322,1768457468984,-535.84,0.00041643,30]
[402013323,1768457468996,-500.0,0.00041643,30]
[402013324,1768457469006,-500.0,0.00041643,30]
[402013325,1768457469017,-500.0,0.00041643,30]
[402013326,1768457469031,-1229.13,0.00041643,30]
[402013327,1768457469050,-500.0,0.00041643,30]
[402013328,1768457469064,-704.68,0.00041643,30]
[402013329,1768457469074,-500.0,0.00041643,30]
[402013330,1768457469083,-500.0,0.00041643,30]
[402013331,1768457469093,-500.0,0.00041643,30]
[402013332,1768457469105,-500.0,0.00041643,30]
[402013333,1768457469116,-500.0,0.00041643,30]
[402013334,1768457469126,-608.31,0.00041643,30]
[402013335,1768457469137,-500.0,0.00041643,30]
[402013336,1768457469148,-1541.35,0.00041643,30]
[402013337,1768457469160,-500.0,0.00041643,30]
[402013338,1768457469169,-500.0,0.00041643,30]
[402013339,1768457469179,-713.76,0.00041643,30]
[402013340,1768457469188,-1441.38,0.00041643,30]
[402013341,1768457469199,-622.76997731,0.00041643,30]
[402013342,1768457469208,-815.44,0.00041643,30]
[402013343,1768457469217,-1161.33,0.00041643,30]
[402013344,1768457469226,-500.0,0.00041643,30]
[402013345,1768457469237,-500.0,0.00041643,30]
[402013346,1768457469247,-500.0,0.00041643,30]
[402013347,1768457469256,-500.0,0.00041643,30]
[402013348,1768457469266,-1453.7,0.00041643,30]
[402013349,1768457469277,-547.70873057,0.00041643,30]
[402013350,1768457469287,-1560.93,0.00041643,30]
[402013351,1768457469297,-500.0,0.00041643,30]
[402013352,1768457469307,-500.0,0.00041643,30]
[402013353,1768457469317,-2037.09,0.00041643,30]
[402013354,1768457469327,-2847.78,0.00041643,30]
[402013355,1768457469336,-500.0,0.00041643,30]
[402013356,1768457469346,-500.0,0.00041643,30]
[402013357,1768457469356,-500.0,0.00041643,30]
[402013358,1768457469367,-1300.27,0.00041643,30]
[402013359,1768457469376,-814.99,0.00041643,30]
[402013360,1768457469387,-500.0,0.00041643,30]
[402013361,1768457469397,-651.85,0.00041643,30]
[402013362,1768457469407,-744.01,0.00041643,30]
[402013363,1768457469418,-500.0,0.00041643,30]
[402013364,1768457469428,-1616.34,0.00041643,30]
[402013365,1768457469438,-500.0,0.00041643,30]
[402013366,1768457469450,-1796.82086515,0.00041731,2]
[402013367,1768457469460,-1349.12748453,0.00041764,101]
[402013368,1768457469471,-895.42851163,0.00041817,2]
[402013369,1768457469482,-500.0,0.00041852,60]
[402013370,1768457469492,-1500.0,0.00041852,60]
[402013371,1768457469502,-748.0,0.00041863,2]
[402013372,1768457469512,-500.0,0.00041863,2]
[402013373,1768457469523,-500.0,0.00041863,60]
[402013374,1768457469533,-3085.0,0.00041863,2]
[402013375,1768457469543,-500.0,0.00041863,2]
[402013376,1768457469552,-150.0,0.00041863,2]
[402013377,1768457469561,-170.39758959,0.000419,120]
[402013378,1768457469571,-170.39758941,0.000419,120]
[402013379,1768457469580,-170.39758941,0.000419,120]
[402013380,1768457469590,-170.39758941,0.000419,120]
[402013381,1768457469600,-170.39758941,0.000419,120]
[402013382,1768457469610,-170.39758941,0.000419,120]
[402013383,1768457469620,-170.39758941,0.000419,120]
[402013384,1768457469630,-170.39758941,0.000419,120]
[402013385,1768457469640,-170.39758941,0.000419,120]
[402013386,1768457469649,-170.39758941,0.000419,120]
[402013387,1768457469658,-170.39758941,0.000419,120]